[Event "Titled Tuesday Blitz July 18 Late 2023"]
[White "Arnold, Ken"]
[Black "Shuvalova, Polina"]
[WhiteFideId "2056836"]
[BlackFideId "24171760"]
[WhiteElo "2443"]
[BlackElo "2650"]
[Result "1-0"]
[Round "9"]
[TimeControl "180+2"]
[Date "2023.07.18"]
[WhiteClock "0:00:32"]
[BlackClock "0:00:29"]
[Board "54"]

1. d4 {[%clk 0:03:00]}  Nf6 {[%clk 0:02:59]} 2. Nf3 {[%clk 0:03:01]}  e6 {[%clk 0:02:59]} 3. c3 {[%clk 0:03:01]}  d5 {[%clk 0:02:59]} 4. Bf4 {[%clk 0:03:01]}  Bd6 {[%clk 0:02:59]} 5. e3 {[%clk 0:03:01]}  O-O {[%clk 0:02:59]} 6. Bd3 {[%clk 0:03:00]}  b6 {[%clk 0:02:57]} 7. O-O {[%clk 0:03:00]}  c5 {[%clk 0:02:55]} 8. Nbd2 {[%clk 0:02:54]}  Ba6 {[%clk 0:02:55]} 9. Qe2 {[%clk 0:02:53]}  Bxd3 {[%clk 0:02:54]} 10. Qxd3 {[%clk 0:02:53]}  Nc6 {[%clk 0:02:55]} 11. Rfe1 {[%clk 0:02:46]}  Rc8 {[%clk 0:02:54]} 12. Re2 {[%clk 0:02:43]}  Re8 {[%clk 0:02:54]} 13. Bxd6 {[%clk 0:02:42]}  Qxd6 {[%clk 0:02:54]} 14. Rae1 {[%clk 0:02:42]}  e5 {[%clk 0:02:51]} 15. dxe5 {[%clk 0:02:42]}  Nxe5 {[%clk 0:02:52]} 16. Nxe5 {[%clk 0:02:41]}  Qxe5 {[%clk 0:02:53]} 17. Nf3 {[%clk 0:02:38]}  Qe6 {[%clk 0:02:49]} 18. h3 {[%clk 0:02:37]}  h6 {[%clk 0:02:48]} 19. Rd1 {[%clk 0:02:36]}  Rcd8 {[%clk 0:02:48]} 20. Nd2 {[%clk 0:02:16]}  h5 {[%clk 0:02:42]} 21. Qc2 {[%clk 0:02:03]}  Rd6 {[%clk 0:02:34]} 22. a4 {[%clk 0:01:56]}  Red8 {[%clk 0:02:31]} 23. a5 {[%clk 0:01:53]}  d4 {[%clk 0:02:18]} 24. cxd4 {[%clk 0:01:51]}  cxd4 {[%clk 0:02:18]} 25. Qa4 {[%clk 0:01:33]}  dxe3 {[%clk 0:02:14]} 26. Rxe3 {[%clk 0:01:28]}  Qf5 {[%clk 0:02:00]} 27. axb6 {[%clk 0:01:17]}  axb6 {[%clk 0:01:58]} 28. Qb4 {[%clk 0:01:11]}  Nd5 {[%clk 0:01:52]} 29. Re8+ {[%clk 0:00:58]}  Kh7 {[%clk 0:01:45]} 30. Rxd8 {[%clk 0:00:57]}  Rxd8 {[%clk 0:01:40]} 31. Qe4 {[%clk 0:00:56]}  Qg6 {[%clk 0:00:57]} 32. Qxg6+ {[%clk 0:00:53]}  Kxg6 {[%clk 0:00:58]} 33. Nc4 {[%clk 0:00:48]}  Rc8 {[%clk 0:00:39]} 34. Ne5+ {[%clk 0:00:45]}  Kf5 {[%clk 0:00:39]} 35. Rxd5 {[%clk 0:00:45]}  Ke6 {[%clk 0:00:39]} 36. Rb5 {[%clk 0:00:44]}  Rc1+ {[%clk 0:00:39]} 37. Kh2 {[%clk 0:00:44]}  Rc2 {[%clk 0:00:40]} 38. Nd3 {[%clk 0:00:42]}  Rd2 {[%clk 0:00:40]} 39. Nf4+ {[%clk 0:00:42]}  Kd6 {[%clk 0:00:39]} 40. Rxb6+ {[%clk 0:00:38]}  Kc5 {[%clk 0:00:39]} 41. Rb3 {[%clk 0:00:35]}  g6 {[%clk 0:00:38]} 42. Rf3 {[%clk 0:00:34]}  Kc4 {[%clk 0:00:37]} 43. b3+ {[%clk 0:00:34]}  Kb4 {[%clk 0:00:37]} 44. h4 {[%clk 0:00:32]}  Rd7 {[%clk 0:00:32]} 45. g3 {[%clk 0:00:32]}  Ra7 {[%clk 0:00:30]} 46. Kg2 {[%clk 0:00:32]}  Kc5 {[%clk 0:00:31]} 47. Nh3 {[%clk 0:00:32]}  Kd4 {[%clk 0:00:31]} 48. Ng5 {[%clk 0:00:33]}  f5 {[%clk 0:00:32]} 49. Ne6+ {[%clk 0:00:32]}  Ke5 {[%clk 0:00:32]} 50. Nf4 {[%clk 0:00:32]}  Ra6 {[%clk 0:00:31]} 51. Re3+ {[%clk 0:00:32]}  Kd4 {[%clk 0:00:29]} 52. Re6 {[%clk 0:00:32]} 1-0


[Site "https://www.chess.com"]

[Event "Titled Tuesday Blitz July 18 Late 2023"]
[White "Sos Andreu, Eric"]
[Black "Troff, Kayden"]
[WhiteFideId "22247017"]
[BlackFideId "2047896"]
[WhiteElo "2487"]
[BlackElo "2770"]
[Result "1-0"]
[Round "9"]
[TimeControl "180+2"]
[Date "2023.07.18"]
[WhiteClock "0:00:03"]
[BlackClock "0:00:06"]
[Board "56"]

1. d4 {[%clk 0:03:00]}  Nf6 {[%clk 0:02:57]} 2. c4 {[%clk 0:03:00]}  g6 {[%clk 0:02:56]} 3. Nc3 {[%clk 0:03:00]}  d5 {[%clk 0:02:56]} 4. cxd5 {[%clk 0:02:59]}  Nxd5 {[%clk 0:02:57]} 5. e4 {[%clk 0:03:00]}  Nxc3 {[%clk 0:02:57]} 6. bxc3 {[%clk 0:03:00]}  Bg7 {[%clk 0:02:58]} 7. Be3 {[%clk 0:02:58]}  c5 {[%clk 0:02:57]} 8. Nf3 {[%clk 0:02:58]}  Qa5 {[%clk 0:02:57]} 9. Nd2 {[%clk 0:02:56]}  Be6 {[%clk 0:02:43]} 10. Be2 {[%clk 0:02:38]}  O-O {[%clk 0:02:40]} 11. O-O {[%clk 0:02:37]}  Na6 {[%clk 0:02:36]} 12. d5 {[%clk 0:02:34]}  Bd7 {[%clk 0:02:30]} 13. Nb3 {[%clk 0:02:27]}  Qxc3 {[%clk 0:02:25]} 14. Rc1 {[%clk 0:02:27]}  Qe5 {[%clk 0:02:23]} 15. Nxc5 {[%clk 0:02:25]}  Nxc5 {[%clk 0:02:22]} 16. Rxc5 {[%clk 0:02:25]}  Qxe4 {[%clk 0:02:17]} 17. Rc7 {[%clk 0:02:20]}  Rfd8 {[%clk 0:01:44]} 18. Rxb7 {[%clk 0:02:18]}  Bc6 {[%clk 0:01:38]} 19. Bf3 {[%clk 0:02:09]}  Qe5 {[%clk 0:01:20]} 20. dxc6 {[%clk 0:01:58]}  Rxd1 {[%clk 0:01:19]} 21. Rxd1 {[%clk 0:01:59]}  Rc8 {[%clk 0:01:13]} 22. c7 {[%clk 0:01:36]}  Bf8 {[%clk 0:00:37]} 23. Rc1 {[%clk 0:00:55]}  e6 {[%clk 0:00:35]} 24. g3 {[%clk 0:00:51]}  g5 {[%clk 0:00:28]} 25. h4 {[%clk 0:00:40]}  h6 {[%clk 0:00:23]} 26. hxg5 {[%clk 0:00:34]}  hxg5 {[%clk 0:00:24]} 27. Rxa7 {[%clk 0:00:34]}  Kh7 {[%clk 0:00:20]} 28. Ra8 {[%clk 0:00:28]}  Rxc7 {[%clk 0:00:16]} 29. Rxc7 {[%clk 0:00:23]}  Qxc7 {[%clk 0:00:17]} 30. Rxf8 {[%clk 0:00:22]}  Kg7 {[%clk 0:00:17]} 31. Ra8 {[%clk 0:00:20]}  Qe5 {[%clk 0:00:17]} 32. g4 {[%clk 0:00:19]}  f5 {[%clk 0:00:14]} 33. gxf5 {[%clk 0:00:18]}  Qxf5 {[%clk 0:00:13]} 34. Bg2 {[%clk 0:00:16]}  g4 {[%clk 0:00:13]} 35. Ra7+ {[%clk 0:00:14]}  Kg6 {[%clk 0:00:13]} 36. a4 {[%clk 0:00:14]}  g3 {[%clk 0:00:13]} 37. fxg3 {[%clk 0:00:11]}  e5 {[%clk 0:00:12]} 38. Bf2 {[%clk 0:00:10]}  Qc2 {[%clk 0:00:11]} 39. a5 {[%clk 0:00:08]}  Kf6 {[%clk 0:00:08]} 40. a6 {[%clk 0:00:08]}  Qc1+ {[%clk 0:00:08]} 41. Bf1 {[%clk 0:00:08]}  e4 {[%clk 0:00:08]} 42. Bd4+ {[%clk 0:00:04]}  Ke6 {[%clk 0:00:07]} 43. Rb7 {[%clk 0:00:05]}  e3 {[%clk 0:00:07]} 44. Rb8 {[%clk 0:00:03]}  Kd5 {[%clk 0:00:07]} 45. Rd8+ {[%clk 0:00:03]}  Ke4 {[%clk 0:00:06]} 46. a7 {[%clk 0:00:03]}  e2 {[%clk 0:00:06]} 47. a8=Q+ {[%clk 0:00:03]}  Kd3 {[%clk 0:00:07]} 48. Qf3+ {[%clk 0:00:03]}  Kc2 {[%clk 0:00:06]} 49. Rc8+ {[%clk 0:00:03]}  Kd2 {[%clk 0:00:06]} 50. Qxe2# {[%clk 0:00:03]} 1-0


[Site "https://www.chess.com"]

[Event "Titled Tuesday Blitz July 18 Late 2023"]
[White "Melnichuk, Mikhail"]
[Black "Quintiliano Pinto, Renato R."]
[WhiteFideId "14117533"]
[BlackFideId "2117568"]
[WhiteElo "2483"]
[BlackElo "2680"]
[Result "0-1"]
[Round "9"]
[TimeControl "180+2"]
[Date "2023.07.18"]
[WhiteClock "0:00:08"]
[BlackClock "0:00:57"]
[Board "57"]

1. Nf3 {[%clk 0:02:56]}  c5 {[%clk 0:02:59]} 2. c4 {[%clk 0:02:52]}  Nc6 {[%clk 0:02:59]} 3. d4 {[%clk 0:02:49]}  cxd4 {[%clk 0:02:59]} 4. Nxd4 {[%clk 0:02:50]}  Nf6 {[%clk 0:02:58]} 5. Nc3 {[%clk 0:02:48]}  e6 {[%clk 0:02:57]} 6. a3 {[%clk 0:02:40]}  Bc5 {[%clk 0:02:52]} 7. Nb3 {[%clk 0:02:28]}  Be7 {[%clk 0:02:51]} 8. g3 {[%clk 0:02:24]}  O-O {[%clk 0:02:50]} 9. Bg2 {[%clk 0:02:24]}  b6 {[%clk 0:02:49]} 10. O-O {[%clk 0:02:22]}  Bb7 {[%clk 0:02:50]} 11. Bf4 {[%clk 0:02:17]}  a6 {[%clk 0:02:30]} 12. Bd6 {[%clk 0:02:09]}  Bxd6 {[%clk 0:02:26]} 13. Qxd6 {[%clk 0:02:10]}  Qb8 {[%clk 0:02:25]} 14. Rfd1 {[%clk 0:02:01]}  Rc8 {[%clk 0:02:25]} 15. Qxb8 {[%clk 0:01:53]}  Raxb8 {[%clk 0:02:24]} 16. Ne4 {[%clk 0:01:50]}  Nxe4 {[%clk 0:02:17]} 17. Bxe4 {[%clk 0:01:51]}  Ne5 {[%clk 0:02:16]} 18. Bd3 {[%clk 0:01:08]}  Nxc4 {[%clk 0:02:10]} 19. Bxc4 {[%clk 0:01:01]}  Rxc4 {[%clk 0:02:11]} 20. Rxd7 {[%clk 0:01:01]}  Bd5 {[%clk 0:02:11]} 21. Rc1 {[%clk 0:00:48]}  Rxc1+ {[%clk 0:02:06]} 22. Nxc1 {[%clk 0:00:47]}  Rc8 {[%clk 0:02:07]} 23. Nd3 {[%clk 0:00:45]}  h5 {[%clk 0:01:46]} 24. f3 {[%clk 0:00:43]}  Rc2 {[%clk 0:01:44]} 25. Kf2 {[%clk 0:00:39]}  a5 {[%clk 0:01:42]} 26. Ke3 {[%clk 0:00:34]}  Bc4 {[%clk 0:01:27]} 27. b4 {[%clk 0:00:31]}  a4 {[%clk 0:01:19]} 28. Rb7 {[%clk 0:00:18]}  b5 {[%clk 0:01:17]} 29. Rb8+ {[%clk 0:00:16]}  Kh7 {[%clk 0:01:17]} 30. Rb7 {[%clk 0:00:17]}  f6 {[%clk 0:01:14]} 31. Nf4 {[%clk 0:00:14]}  e5 {[%clk 0:01:03]} 32. Nd3 {[%clk 0:00:14]}  Ra2 {[%clk 0:00:58]} 33. Nc5 {[%clk 0:00:08]}  Rxe2# {[%clk 0:00:57]} 0-1


[Site "https://www.chess.com"]

[Event "Titled Tuesday Blitz July 18 Late 2023"]
[White "Tarhan, Adar"]
[Black "NLLO777"]
[WhiteFideId "34544712"]
[WhiteElo "2575"]
[BlackElo "2448"]
[Result "0-1"]
[Round "9"]
[TimeControl "180+2"]
[Date "2023.07.18"]
[WhiteClock "0:00:08"]
[BlackClock "0:00:10"]
[Board "63"]

1. d4 {[%clk 0:02:55]}  Nf6 {[%clk 0:03:00]} 2. c3 {[%clk 0:02:56]}  d5 {[%clk 0:02:57]} 3. Bf4 {[%clk 0:02:50]}  c5 {[%clk 0:02:57]} 4. e3 {[%clk 0:02:50]}  Nc6 {[%clk 0:02:56]} 5. Nf3 {[%clk 0:02:50]}  Qb6 {[%clk 0:02:55]} 6. Qb3 {[%clk 0:02:49]}  c4 {[%clk 0:02:54]} 7. Qxb6 {[%clk 0:02:48]}  axb6 {[%clk 0:02:55]} 8. Na3 {[%clk 0:02:48]}  e6 {[%clk 0:02:51]} 9. Nb5 {[%clk 0:02:48]}  Ra5 {[%clk 0:02:50]} 10. a4 {[%clk 0:02:46]}  Na7 {[%clk 0:02:23]} 11. Nc7+ {[%clk 0:02:04]}  Ke7 {[%clk 0:02:10]} 12. Na8 {[%clk 0:01:57]}  Nd7 {[%clk 0:02:03]} 13. Ne5 {[%clk 0:01:56]}  b5 {[%clk 0:01:36]} 14. Be2 {[%clk 0:01:15]}  bxa4 {[%clk 0:01:30]} 15. Bd1 {[%clk 0:01:14]}  b5 {[%clk 0:01:25]} 16. Nf3 {[%clk 0:00:23]}  Nc6 {[%clk 0:01:09]} 17. Nc7 {[%clk 0:00:23]}  Kd8 {[%clk 0:00:47]} 18. Ng5 {[%clk 0:00:20]}  Ke7 {[%clk 0:00:41]} 19. Bh5 {[%clk 0:00:15]}  g6 {[%clk 0:00:40]} 20. Bf3 {[%clk 0:00:15]}  h6 {[%clk 0:00:39]} 21. Bd6+ {[%clk 0:00:10]}  Kxd6 {[%clk 0:00:39]} 22. Nxf7+ {[%clk 0:00:11]}  Kxc7 {[%clk 0:00:39]} 23. Nxh8 {[%clk 0:00:12]}  g5 {[%clk 0:00:32]} 24. h4 {[%clk 0:00:10]}  b4 {[%clk 0:00:19]} 25. hxg5 {[%clk 0:00:09]}  hxg5 {[%clk 0:00:20]} 26. Kd2 {[%clk 0:00:05]}  a3 {[%clk 0:00:18]} 27. bxa3 {[%clk 0:00:06]}  b3 {[%clk 0:00:16]} 28. e4 {[%clk 0:00:03]}  Nb6 {[%clk 0:00:14]} 29. exd5 {[%clk 0:00:03]}  exd5 {[%clk 0:00:15]} 30. Rh7+ {[%clk 0:00:03]}  Bd7 {[%clk 0:00:15]} 31. Ng6 {[%clk 0:00:04]}  Bd6 {[%clk 0:00:15]} 32. Bg4 {[%clk 0:00:02]}  Rxa3 {[%clk 0:00:13]} 33. Rxa3 {[%clk 0:00:02]}  Bxa3 {[%clk 0:00:14]} 34. Bxd7 {[%clk 0:00:03]}  Nxd7 {[%clk 0:00:14]} 35. Nf8 {[%clk 0:00:04]}  Bxf8 {[%clk 0:00:14]} 36. Rf7 {[%clk 0:00:02]}  Bd6 {[%clk 0:00:11]} 37. Rf5 {[%clk 0:00:03]}  Bf4+ {[%clk 0:00:06]} 38. Kd1 {[%clk 0:00:03]}  b2 {[%clk 0:00:07]} 39. Kc2 {[%clk 0:00:04]}  Bc1 {[%clk 0:00:06]} 40. Rxd5 {[%clk 0:00:03]}  Nb6 {[%clk 0:00:06]} 41. Rb5 {[%clk 0:00:03]}  Na4 {[%clk 0:00:06]} 42. g3 {[%clk 0:00:03]}  Kd6 {[%clk 0:00:03]} 43. f4 {[%clk 0:00:03]}  gxf4 {[%clk 0:00:03]} 44. gxf4 {[%clk 0:00:04]}  Ne7 {[%clk 0:00:01]} 45. f5 {[%clk 0:00:04]}  Nd5 {[%clk 0:00:02]} 46. Rxd5+ {[%clk 0:00:01]}  Kxd5 {[%clk 0:00:02]} 47. f6 {[%clk 0:00:02]}  Nxc3 {[%clk 0:00:02]} 48. f7 {[%clk 0:00:03]}  b1=Q+ {[%clk 0:00:03]} 49. Kxc3 {[%clk 0:00:04]}  Qd3+ {[%clk 0:00:03]} 50. Kb4 {[%clk 0:00:04]}  Qb3+ {[%clk 0:00:04]} 51. Ka5 {[%clk 0:00:04]}  Qb8 {[%clk 0:00:03]} 52. Ka4 {[%clk 0:00:03]}  Qf8 {[%clk 0:00:04]} 53. Ka5 {[%clk 0:00:03]}  Qxf7 {[%clk 0:00:05]} 54. Kb5 {[%clk 0:00:04]}  Kxd4 {[%clk 0:00:06]} 55. Ka5 {[%clk 0:00:05]}  c3 {[%clk 0:00:06]} 56. Kb5 {[%clk 0:00:06]}  c2 {[%clk 0:00:07]} 57. Ka4 {[%clk 0:00:06]}  Bh6 {[%clk 0:00:08]} 58. Kb4 {[%clk 0:00:06]}  c1=Q {[%clk 0:00:08]} 59. Ka4 {[%clk 0:00:07]}  Qa7+ {[%clk 0:00:09]} 60. Kb5 {[%clk 0:00:08]}  Qb7+ {[%clk 0:00:09]} 61. Ka4 {[%clk 0:00:08]}  Qa1# {[%clk 0:00:10]} 0-1


[Site "https://www.chess.com"]

[Event "Titled Tuesday Blitz July 18 Late 2023"]
[White "Vlassov, Nikolai"]
[Black "Salazar Farias, Luis German"]
[WhiteFideId "4103360"]
[BlackFideId "3902170"]
[WhiteElo "2567"]
[BlackElo "2492"]
[Result "1-0"]
[Round "9"]
[TimeControl "180+2"]
[Date "2023.07.18"]
[WhiteClock "0:00:17"]
[BlackClock "0:00:00"]
[Board "65"]

1. e4 {[%clk 0:03:00]}  c6 {[%clk 0:02:50]} 2. d4 {[%clk 0:03:00]}  d5 {[%clk 0:02:50]} 3. e5 {[%clk 0:03:00]}  c5 {[%clk 0:02:50]} 4. dxc5 {[%clk 0:02:59]}  e6 {[%clk 0:02:49]} 5. Nf3 {[%clk 0:02:58]}  Bxc5 {[%clk 0:02:48]} 6. a3 {[%clk 0:02:59]}  Nd7 {[%clk 0:02:42]} 7. b4 {[%clk 0:02:55]}  Be7 {[%clk 0:02:41]} 8. c4 {[%clk 0:02:54]}  dxc4 {[%clk 0:02:22]} 9. Bxc4 {[%clk 0:02:53]}  Nb6 {[%clk 0:02:23]} 10. Bd3 {[%clk 0:02:49]}  Bd7 {[%clk 0:02:08]} 11. O-O {[%clk 0:02:30]}  Bc6 {[%clk 0:02:07]} 12. Nc3 {[%clk 0:02:20]}  Nh6 {[%clk 0:01:54]} 13. Bxh6 {[%clk 0:02:18]}  gxh6 {[%clk 0:01:55]} 14. Qe2 {[%clk 0:02:16]}  Nd5 {[%clk 0:01:30]} 15. Nxd5 {[%clk 0:02:09]}  Qxd5 {[%clk 0:01:29]} 16. b5 {[%clk 0:01:57]}  Bd7 {[%clk 0:01:29]} 17. a4 {[%clk 0:01:53]}  f5 {[%clk 0:01:00]} 18. exf6 {[%clk 0:01:45]}  Bxf6 {[%clk 0:00:59]} 19. Rad1 {[%clk 0:01:45]}  Qh5 {[%clk 0:00:51]} 20. Rfe1 {[%clk 0:01:15]}  O-O-O {[%clk 0:00:41]} 21. a5 {[%clk 0:01:06]}  Kb8 {[%clk 0:00:36]} 22. Qe4 {[%clk 0:00:52]}  Rhg8 {[%clk 0:00:25]} 23. Qf4+ {[%clk 0:00:47]}  Ka8 {[%clk 0:00:19]} 24. a6 {[%clk 0:00:45]}  Bc8 {[%clk 0:00:13]} 25. Be4 {[%clk 0:00:35]}  Qf7 {[%clk 0:00:06]} 26. axb7+ {[%clk 0:00:31]}  Bxb7 {[%clk 0:00:06]} 27. Bxb7+ {[%clk 0:00:31]}  Kxb7 {[%clk 0:00:07]} 28. Ne5 {[%clk 0:00:26]}  Qg7 {[%clk 0:00:07]} 29. Qe4+ {[%clk 0:00:24]}  Rd5 {[%clk 0:00:07]} 30. Rxd5 {[%clk 0:00:22]}  exd5 {[%clk 0:00:05]} 31. Qxd5+ {[%clk 0:00:22]}  Kb8 {[%clk 0:00:05]} 32. Nd7+ {[%clk 0:00:20]}  Kc7 {[%clk 0:00:01]} 33. Nxf6 {[%clk 0:00:20]}  Rf8 {[%clk 0:00:00]} 34. Qc6+ {[%clk 0:00:17]} 1-0


[Site "https://www.chess.com"]

[Event "Titled Tuesday Blitz July 18 Late 2023"]
[White "Rios Escobar, Adan"]
[Black "Sadovsky, Artem"]
[WhiteFideId "3403645"]
[BlackFideId "4155840"]
[WhiteElo "2429"]
[BlackElo "2560"]
[Result "0-1"]
[Round "9"]
[TimeControl "180+2"]
[Date "2023.07.18"]
[WhiteClock "0:00:00"]
[BlackClock "0:00:34"]
[Board "67"]

1. d4 {[%clk 0:02:54]}  g6 {[%clk 0:03:00]} 2. g3 {[%clk 0:02:53]}  Bg7 {[%clk 0:03:00]} 3. Bg2 {[%clk 0:02:54]}  d6 {[%clk 0:02:59]} 4. e4 {[%clk 0:02:54]}  e5 {[%clk 0:02:59]} 5. dxe5 {[%clk 0:02:44]}  dxe5 {[%clk 0:02:59]} 6. Qxd8+ {[%clk 0:02:41]}  Kxd8 {[%clk 0:03:00]} 7. Nc3 {[%clk 0:02:36]}  Be6 {[%clk 0:03:01]} 8. Be3 {[%clk 0:02:33]}  Nd7 {[%clk 0:02:57]} 9. O-O-O {[%clk 0:02:33]}  f6 {[%clk 0:02:55]} 10. f4 {[%clk 0:02:25]}  c6 {[%clk 0:02:55]} 11. Na4 {[%clk 0:02:20]}  Kc7 {[%clk 0:02:52]} 12. Ne2 {[%clk 0:02:18]}  Nh6 {[%clk 0:02:50]} 13. h3 {[%clk 0:02:17]}  Rhd8 {[%clk 0:02:43]} 14. Nc5 {[%clk 0:01:54]}  Nxc5 {[%clk 0:02:42]} 15. Bxc5 {[%clk 0:01:51]}  Bf8 {[%clk 0:02:36]} 16. Be3 {[%clk 0:01:43]}  Nf7 {[%clk 0:02:36]} 17. a4 {[%clk 0:01:27]}  Bb4 {[%clk 0:02:26]} 18. h4 {[%clk 0:01:18]}  Bg4 {[%clk 0:02:23]} 19. Rxd8 {[%clk 0:01:06]}  Rxd8 {[%clk 0:02:24]} 20. Nc3 {[%clk 0:01:04]}  Bxc3 {[%clk 0:02:13]} 21. bxc3 {[%clk 0:01:04]}  Nd6 {[%clk 0:02:13]} 22. Bxa7 {[%clk 0:00:55]}  Nc4 {[%clk 0:01:56]} 23. Bc5 {[%clk 0:00:54]}  Rd2 {[%clk 0:01:29]} 24. Bh3 {[%clk 0:00:44]}  Bxh3 {[%clk 0:01:22]} 25. Rxh3 {[%clk 0:00:41]}  Re2 {[%clk 0:01:03]} 26. Kb1 {[%clk 0:00:33]}  exf4 {[%clk 0:01:03]} 27. gxf4 {[%clk 0:00:26]}  Nd2+ {[%clk 0:01:01]} 28. Kb2 {[%clk 0:00:25]}  Nxe4 {[%clk 0:01:02]} 29. Bd4 {[%clk 0:00:21]}  h5 {[%clk 0:00:53]} 30. f5 {[%clk 0:00:18]}  gxf5 {[%clk 0:00:42]} 31. Rf3 {[%clk 0:00:18]}  Nd6 {[%clk 0:00:38]} 32. Bxf6 {[%clk 0:00:16]}  Re4 {[%clk 0:00:38]} 33. a5 {[%clk 0:00:13]}  Kd7 {[%clk 0:00:38]} 34. Bg5 {[%clk 0:00:13]}  Ke6 {[%clk 0:00:38]} 35. Bf4 {[%clk 0:00:10]}  Nc4+ {[%clk 0:00:39]} 36. Ka2 {[%clk 0:00:06]}  Nxa5 {[%clk 0:00:39]} 37. Bg5 {[%clk 0:00:02]}  Nc4 {[%clk 0:00:39]} 38. Rd3 {[%clk 0:00:03]}  f4 {[%clk 0:00:36]} 39. Rd8 {[%clk 0:00:03]}  Kf5 {[%clk 0:00:34]} 40. Rf8+ {[%clk 0:00:03]}  Kg4 {[%clk 0:00:35]} 41. Kb3 {[%clk 0:00:00]}  f3 {[%clk 0:00:34]} 0-1


[Site "https://www.chess.com"]

[Event "Titled Tuesday Blitz July 18 Late 2023"]
[White "Romero Ruscalleda, Josep"]
[Black "Rangel, Daniel"]
[WhiteFideId "2231859"]
[BlackFideId "2124475"]
[WhiteElo "2389"]
[BlackElo "2525"]
[Result "0-1"]
[Round "9"]
[TimeControl "180+2"]
[Date "2023.07.18"]
[WhiteClock "0:00:00"]
[BlackClock "0:00:07"]
[Board "71"]

1. e4 {[%clk 0:03:00]}  c5 {[%clk 0:02:53]} 2. c3 {[%clk 0:03:00]}  g6 {[%clk 0:02:51]} 3. d4 {[%clk 0:03:00]}  cxd4 {[%clk 0:02:52]} 4. cxd4 {[%clk 0:03:00]}  d5 {[%clk 0:02:52]} 5. Nc3 {[%clk 0:03:00]}  dxe4 {[%clk 0:02:50]} 6. Bc4 {[%clk 0:03:00]}  e6 {[%clk 0:02:15]} 7. Nxe4 {[%clk 0:02:56]}  Bg7 {[%clk 0:02:10]} 8. Be3 {[%clk 0:02:56]}  Nf6 {[%clk 0:02:08]} 9. Nc3 {[%clk 0:02:46]}  O-O {[%clk 0:02:06]} 10. Nf3 {[%clk 0:02:46]}  a6 {[%clk 0:01:59]} 11. a4 {[%clk 0:02:41]}  Nc6 {[%clk 0:01:58]} 12. O-O {[%clk 0:02:40]}  Nb4 {[%clk 0:01:56]} 13. Qe2 {[%clk 0:02:35]}  Nfd5 {[%clk 0:01:53]} 14. Bg5 {[%clk 0:02:21]}  Qc7 {[%clk 0:01:19]} 15. Rac1 {[%clk 0:02:15]}  Qb8 {[%clk 0:01:10]} 16. Ne4 {[%clk 0:01:49]}  h6 {[%clk 0:01:02]} 17. Bd2 {[%clk 0:01:38]}  Nf4 {[%clk 0:00:54]} 18. Qe3 {[%clk 0:01:27]}  Nbd5 {[%clk 0:00:52]} 19. Qb3 {[%clk 0:01:23]}  Bd7 {[%clk 0:00:47]} 20. g3 {[%clk 0:01:11]}  b5 {[%clk 0:00:46]} 21. axb5 {[%clk 0:01:03]}  axb5 {[%clk 0:00:44]} 22. Bxd5 {[%clk 0:00:41]}  Nxd5 {[%clk 0:00:42]} 23. Ne5 {[%clk 0:00:38]}  Be8 {[%clk 0:00:33]} 24. Rfe1 {[%clk 0:00:28]}  b4 {[%clk 0:00:33]} 25. Nc5 {[%clk 0:00:25]}  Ra7 {[%clk 0:00:28]} 26. Be3 {[%clk 0:00:19]}  Bb5 {[%clk 0:00:20]} 27. Nc4 {[%clk 0:00:18]}  Rc8 {[%clk 0:00:17]} 28. Kg2 {[%clk 0:00:16]}  Bc6 {[%clk 0:00:16]} 29. f3 {[%clk 0:00:16]}  Nxe3+ {[%clk 0:00:14]} 30. Nxe3 {[%clk 0:00:14]}  Bxd4 {[%clk 0:00:12]} 31. Ng4 {[%clk 0:00:13]}  Bd5 {[%clk 0:00:10]} 32. Qd3 {[%clk 0:00:08]}  Bxc5 {[%clk 0:00:09]} 33. Nf6+ {[%clk 0:00:08]}  Kg7 {[%clk 0:00:09]} 34. Nxd5 {[%clk 0:00:07]}  exd5 {[%clk 0:00:10]} 35. b3 {[%clk 0:00:07]}  d4 {[%clk 0:00:09]} 36. Rc4 {[%clk 0:00:06]}  Rac7 {[%clk 0:00:09]} 37. Rec1 {[%clk 0:00:06]}  Qb6 {[%clk 0:00:10]} 38. Qe4 {[%clk 0:00:06]}  Bd6 {[%clk 0:00:10]} 39. Rxc7 {[%clk 0:00:04]}  Rxc7 {[%clk 0:00:10]} 40. Rxc7 {[%clk 0:00:04]}  Bxc7 {[%clk 0:00:09]} 41. Qd5 {[%clk 0:00:04]}  Qd6 {[%clk 0:00:09]} 42. Qc4 {[%clk 0:00:03]}  d3 {[%clk 0:00:09]} 43. Qc1 {[%clk 0:00:02]}  d2 {[%clk 0:00:08]} 44. Qd1 {[%clk 0:00:03]}  Bb6 {[%clk 0:00:09]} 45. Kh3 {[%clk 0:00:04]}  Be3 {[%clk 0:00:07]} 46. f4 {[%clk 0:00:00]}  Qd3 {[%clk 0:00:07]} 0-1


[Site "https://www.chess.com"]